fUSD/lending_fUSD_20240114
["ID","MTS","AMOUNT","RATE_DAILY","PERIOD"]
[311616837,1705265491382,-500.0,0.00031506,2]
[311616838,1705265491392,-2696.94,0.00031506,2]
[311616839,1705265491402,-794.76,0.00031506,2]
[311616840,1705265491412,-500.0,0.00031506,2]
[311616841,1705265491422,-500.0,0.00031506,2]
[311616842,1705265491431,-724.53,0.00031506,2]
[311616843,1705265491441,-1597.13,0.00031506,2]
[311616844,1705265491451,-737.29,0.00031506,2]
[311616845,1705265491461,-622.57,0.00031506,2]
[311616846,1705265491470,-500.0,0.00031506,2]
[311616847,1705265491480,-1009.68,0.00031506,2]
[311616848,1705265491490,-500.0,0.00031506,2]
[311616849,1705265491500,-640.35,0.00031506,2]
[311616850,1705265491510,-189.4207007,0.00031506,2]
[311616851,1705265491520,-500.0,0.00031506,2]
[311616852,1705265491530,-500.0,0.00031506,2]
[311616853,1705265491540,-500.0,0.00031506,2]
[311616854,1705265491550,-500.0,0.00031506,2]
[311616855,1705265491560,-1595.29,0.00031506,2]
[311616856,1705265491570,-500.0,0.00031506,2]
[311616857,1705265491580,-500.0,0.00031506,2]
[311616858,1705265491589,-917.26,0.00031506,2]
[311616859,1705265491600,-565.13,0.00031506,2]
[311616860,1705265491609,-2100.41,0.00031506,2]
[311616861,1705265491620,-4300.16,0.00031506,2]
[311616862,1705265491631,-1007.56,0.00031506,2]
[311616863,1705265491641,-776.73,0.00031506,2]
[311616864,1705265491651,-500.0,0.00031506,2]
[311616865,1705265491661,-5057.58,0.00031506,2]
[311616866,1705265491670,-933.45,0.00031506,2]
[311616867,1705265491680,-500.0,0.00031506,2]
[311616868,1705265491690,-531.05,0.00031506,2]
[311616869,1705265491700,-500.0,0.00031506,2]
[311616870,1705265491709,-500.0,0.00031506,2]
[311616871,1705265491719,-1593.77,0.00031506,2]
[311616872,1705265491730,-720.02,0.00031506,2]
[311616873,1705265491744,-536.82,0.00031506,2]
[311616874,1705265491754,-500.0,0.00031506,5]
[311616875,1705265491764,-500.0,0.00031506,2]
[311616876,1705265491775,-500.0,0.00031506,2]
[311616877,1705265491785,-500.0,0.00031506,2]
[311616878,1705265491795,-1573.4,0.00031506,2]
[311616879,1705265491805,-4742.8,0.00031506,2]
[311616880,1705265491815,-500.0,0.00031506,2]
[311616881,1705265491825,-500.0,0.00031506,2]
[311616882,1705265491834,-332.22,0.00031506,2]
[311616883,1705265491844,-500.0,0.00031506,2]
[311616884,1705265491854,-3392.17,0.00031506,2]
[311616885,1705265491863,-881.88,0.00031506,2]
[311616886,1705265491873,-3302.73,0.00031506,2]
[311616887,1705265491884,-755.87,0.00031506,2]
[311616888,1705265491894,-500.0,0.00031506,2]
[311616889,1705265491904,-1145.63,0.00031506,2]
[311616890,1705265491915,-500.0,0.00031506,2]
[311616891,1705265491925,-500.0,0.00031506,2]
[311616892,1705265491935,-500.0,0.00031506,2]
[311616893,1705265491946,-3349.66,0.00031506,2]
[311616894,1705265491956,-500.0,0.00031506,2]
[311616895,1705265491966,-500.0,0.00031506,2]
[311616896,1705265491977,-699.61,0.00031506,2]
[311616897,1705265491987,-911.19,0.00031506,2]
[311616898,1705265491996,-9373.54,0.00031506,2]
[311616899,1705265492007,-1446.11,0.00031506,2]
[311616900,1705265492016,-563.79,0.00031506,2]
[311616901,1705265492027,-500.0,0.00031506,2]
[311616902,1705265492037,-500.0,0.00031506,2]
[311616903,1705265492046,-1392.74,0.00031506,2]
[311616904,1705265492056,-500.0,0.00031506,2]
[311616905,1705265492066,-580.88,0.00031506,2]
[311616906,1705265492076,-9954.34,0.00031506,2]
[311616907,1705265492086,-1674.87,0.00031506,2]
[311616908,1705265492096,-2675.53,0.00031506,2]
[311616909,1705265492106,-609.69,0.00031506,2]
[311616910,1705265492116,-638.69,0.00031506,2]
[311616911,1705265492127,-590.54921757,0.00031506,2]
[311616912,1705265492136,-1402.19,0.00031506,2]
[311616913,1705265492146,-500.0,0.00031506,2]
[311616914,1705265492156,-5600.69,0.00031506,2]
[311616915,1705265492167,-541.21,0.00031506,2]
[311616916,1705265492178,-830.84,0.00031506,2]
[311616917,1705265492188,-2246.95,0.00031506,2]
[311616918,1705265492198,-500.0,0.00031506,2]
[311616919,1705265492208,-500.0,0.00031506,2]
[311616920,1705265492218,-500.0,0.00031506,2]
[311616921,1705265492228,-3335.08,0.00031506,2]
[311616922,1705265492238,-924.51,0.00031506,2]
[311616923,1705265492248,-10595.33,0.00031506,2]
[311616924,1705265492258,-500.0,0.00031506,2]
[311616925,1705265492267,-836.16,0.00031506,2]
[311616926,1705265492277,-500.0,0.00031506,2]
[311616927,1705265492286,-500.0,0.00031506,2]
[311616928,1705265492296,-500.0,0.00031506,2]
[311616929,1705265492307,-646.01,0.00031506,2]
[311616930,1705265492317,-500.0,0.00031506,2]
[311616931,1705265492328,-500.0,0.00031506,2]
[311616932,1705265492338,-500.0,0.00031506,2]
[311616933,1705265492349,-500.0,0.00031506,2]
[311616934,1705265492359,-500.0,0.00031506,2]
[311616935,1705265492369,-500.0,0.00031506,2]
[311616936,1705265492381,-500.0,0.00031506,2]
[311616937,1705265492391,-500.0,0.00031506,2]
[311616938,1705265492402,-1637.96,0.00031506,2]
[311616939,1705265492413,-3401.5,0.00031506,2]
[311616940,1705265492423,-500.0,0.00031506,2]
[311616941,1705265492434,-3225.32,0.00031506,2]
[311616942,1705265492444,-500.0,0.00031506,2]
[311616943,1705265492454,-500.0,0.00031506,2]
[311616944,1705265492464,-699.52,0.00031506,2]
[311616945,1705265492474,-500.0,0.00031506,2]
[311616946,1705265492484,-500.0,0.00031506,2]
[311616947,1705265492494,-1658.41,0.00031506,2]
[311616948,1705265492505,-500.0,0.00031506,2]
[311616949,1705265492516,-898.47,0.00031506,2]
[311616950,1705265492526,-747.38,0.00031506,2]
[311616951,1705265492536,-502.0,0.00031506,2]
[311616952,1705265492547,-3294.26,0.00031506,2]
[311616953,1705265492557,-556.71757491,0.00031506,2]
[311616954,1705265492568,-781.12,0.00031506,2]
[311616955,1705265492578,-2934.21,0.00031506,2]
[311616956,1705265492588,-28330.08,0.00031506,2]
[311616957,1705265492598,-1324.02,0.00031506,2]
[311616958,1705265492607,-1385.96,0.00031506,2]
[311616959,1705265492617,-509.43,0.00031506,2]
[311616960,1705265492628,-500.0,0.00031506,2]
[311616961,1705265492637,-915.45,0.00031506,2]
[311616962,1705265492647,-500.0,0.00031506,2]
[311616963,1705265492657,-2258.81,0.00031506,2]
[311616964,1705265492667,-500.0,0.00031506,2]
[311616965,1705265492676,-993.95,0.00031506,2]
[311616966,1705265492686,-500.0,0.00031506,2]
[311616967,1705265492697,-630.07,0.00031506,2]
[311616968,1705265492707,-500.0,0.00031506,2]
[311616969,1705265492717,-500.0,0.00031506,2]
[311616970,1705265492727,-663.38,0.00031506,2]
[311616971,1705265492741,-534.75,0.00031506,2]
[311616972,1705265492750,-7238.69,0.00031506,2]
[311616973,1705265492760,-2077.72,0.00031506,2]
[311616974,1705265492770,-500.0,0.00031506,2]
[311616975,1705265492781,-1376.21,0.00031506,2]
[311616976,1705265492791,-1332.9,0.00031506,2]
[311616977,1705265492802,-500.0,0.00031506,2]
[311616978,1705265492813,-1108.32,0.00031506,2]
[311616979,1705265492824,-560.24,0.00031506,2]
[311616980,1705265492834,-569.4117204,0.00031506,2]
[311616981,1705265492845,-691.92,0.00031506,2]
[311616982,1705265492856,-500.0,0.00031506,2]
[311616983,1705265492867,-644.63,0.00031506,2]
[311616984,1705265492878,-917.54,0.00031506,2]
[311616985,1705265492888,-500.0,0.00031506,2]
[311616986,1705265492898,-4169.87,0.00031506,2]
[311616987,1705265492914,-503.48,0.00031506,2]
[311616988,1705265492923,-810.05,0.00031506,2]
[311616989,1705265492934,-500.0,0.00031506,2]
[311616990,1705265492943,-799.56,0.00031506,2]
[311616991,1705265492953,-500.0,0.00031506,2]
[311616992,1705265492963,-907.45,0.00031506,2]
[311616993,1705265492973,-500.0,0.00031506,2]
[311616994,1705265492984,-767.29,0.00031506,2]
[311616995,1705265492994,-733.07,0.00031506,2]
[311616996,1705265493005,-500.0,0.00031506,2]
[311616997,1705265493015,-6057.77,0.00031506,2]
[311616998,1705265493025,-500.0,0.00031506,2]
[311616999,1705265493036,-1447.4,0.00031506,2]
[311617000,1705265493046,-1557.23,0.00031506,2]
[311617001,1705265493055,-1520.88,0.00031506,2]
[311617002,1705265493065,-500.0,0.00031506,2]
[311617003,1705265493075,-405.61084137,0.00031506,2]
[311617004,1705265493085,-500.0,0.00031506,2]
[311617005,1705265493095,-1561.7,0.00031506,2]
[311617006,1705265493105,-500.0,0.00031506,2]
[311617007,1705265493116,-500.0,0.00031506,2]
[311617008,1705265493128,-16510.87,0.00031506,2]
[311617009,1705265493138,-2650.58,0.00031506,2]
[311617010,1705265493246,-510.0348096,0.00031506,2]
[311617011,1705265493257,-1302.74,0.00031506,2]
[311617012,1705265493268,-500.0,0.00031506,2]
[311617013,1705265493278,-587.88,0.00031506,2]
[311617014,1705265493289,-3126.96,0.00031506,2]
[311617015,1705265493299,-1648.36,0.00031506,2]
[311617016,1705265493308,-500.0,0.00031506,2]
[311617017,1705265493318,-500.0,0.00031506,2]
[311617018,1705265493328,-1892.55,0.00031506,2]
[311617019,1705265493338,-500.0,0.00031506,2]
[311617020,1705265493348,-500.0,0.00031506,2]
[311617021,1705265493357,-3105.59,0.00031506,2]
[311617022,1705265493367,-8950.09,0.00031506,2]
[311617023,1705265493378,-1582.78,0.00031506,2]
[311617024,1705265493387,-500.0,0.00031506,2]
[311617025,1705265493397,-1119.58,0.00031506,2]
[311617026,1705265493407,-567.47452125,0.00031506,2]
[311617027,1705265493416,-810.88,0.00031506,2]
[311617028,1705265493427,-925.46,0.00031506,2]
[311617029,1705265493436,-1419.16,0.00031506,2]
[311617030,1705265493445,-1362.22,0.00031506,2]
[311617031,1705265493455,-840.38,0.00031506,2]
[311617032,1705265493465,-500.0,0.00031506,2]
[311617033,1705265493474,-707.1,0.00031506,2]
[311617034,1705265493482,-1153.75,0.00031506,2]
[311617035,1705265493493,-344.69951813,0.00031506,2]
[311617036,1705265493502,-965.13,0.00031506,2]
[311617037,1705265493512,-500.0,0.00031506,2]
[311617038,1705265493522,-500.0,0.00031506,2]
[311617039,1705265493532,-836.71,0.00031506,2]
[311617040,1705265493543,-736.07,0.00031506,2]
[311617041,1705265493553,-1354.92,0.00031506,2]
[311617042,1705265493563,-500.0,0.00031506,2]
[311617043,1705265493572,-622.53,0.00031506,2]
[311617044,1705265493582,-5875.67,0.00031506,2]
[311617045,1705265493592,-500.0,0.00031506,2]
[311617046,1705265493601,-784.6,0.00031506,2]
[311617047,1705265493611,-3535.86,0.00031506,2]
[311617048,1705265493620,-726.02,0.00031506,2]
[311617049,1705265493631,-500.0,0.00031506,2]
[311617050,1705265493641,-1339.45,0.00031506,2]
[311617051,1705265493650,-322.75135738,0.00031506,2]
[311617052,1705265493660,-772.02,0.00031506,2]
[311617053,1705265493669,-2000.77,0.00031506,2]
[311617054,1705265493678,-500.0,0.00031506,2]
[311617055,1705265493687,-500.0,0.00031506,2]
[311617056,1705265493696,-300.0,0.00031506,2]
[311617057,1705265493706,-4196.76,0.00031506,2]
[311617058,1705265493715,-500.0,0.00031506,2]
[311617059,1705265493726,-1070.23,0.00031506,2]
[311617060,1705265493738,-874.57,0.00031506,2]
[311617061,1705265493747,-563.09,0.00031506,2]
[311617062,1705265493757,-500.0,0.00031506,2]
[311617063,1705265493768,-803.67,0.00031506,2]
[311617064,1705265493778,-581.19,0.00031506,2]
[311617065,1705265493787,-500.0,0.00031506,2]
[311617066,1705265493797,-869.2,0.00031506,2]
[311617067,1705265493807,-2946.84,0.00031506,2]
[311617068,1705265493817,-500.0,0.00031506,2]
[311617069,1705265493827,-500.0,0.00031506,2]
[311617070,1705265493836,-633.03,0.00031506,2]
[311617071,1705265493846,-500.0,0.00031506,2]
[311617072,1705265493856,-969.9,0.00031506,2]
[311617073,1705265493866,-711.01,0.00031506,2]
[311617074,1705265493876,-1464.74,0.00031506,2]
[311617075,1705265493886,-552.27,0.00031506,2]
[311617076,1705265493896,-500.0,0.00031506,2]
[311617077,1705265493906,-1928.32,0.00031506,2]
[311617078,1705265493917,-1643.12,0.00031506,2]
[311617079,1705265493926,-1109.23,0.00031506,2]
[311617080,1705265493936,-1413.08,0.00031506,2]
[311617081,1705265493946,-1980.27,0.00031506,2]
[311617082,1705265493956,-503.28,0.00031506,2]
[311617083,1705265493965,-500.0,0.00031506,2]
[311617084,1705265493974,-500.0,0.00031506,2]
[311617085,1705265493984,-500.0,0.00031506,2]
[311617086,1705265493993,-474.2295133,0.00031506,2]
[311617087,1705265494003,-1886.92,0.00031506,2]
[311617088,1705265494013,-532.18,0.00031506,2]
[311617089,1705265494023,-710.77,0.00031506,2]
[311617090,1705265494032,-560.65,0.00031506,2]
[311617091,1705265494042,-500.0,0.00031506,2]
[311617092,1705265494051,-848.62,0.00031506,2]
[311617093,1705265494062,-4590.19,0.00031506,2]
[311617094,1705265494071,-610.95,0.00031506,2]
[311617095,1705265494081,-567.58,0.00031506,2]
[311617096,1705265494090,-500.0,0.00031506,2]
[311617097,1705265494099,-500.0,0.00031506,2]
[311617098,1705265494109,-151.0,0.00031506,7]
[311617099,1705265494119,-151.0,0.00031506,7]
[311617100,1705265494130,-151.0,0.00031506,7]
[311617101,1705265494140,-782.2,0.00031507,2]
[311617102,1705265494148,-169.14057872,0.00031507,2]
[311617103,1705265494158,-15579.32167354,0.00031536,3]
[311617104,1705265494167,-151.74,0.00031644,2]
[311617105,1705265494177,-829.570305,0.00031655,2]
[311617106,1705265494186,-152.286792,0.00031655,2]
[311617107,1705265494195,-182.472387,0.00031655,2]
[311617108,1705265494204,-150.322426,0.00031655,2]
[311617109,1705265494213,-180.075391,0.00031655,2]
[311617110,1705265494222,-169.66136031,0.00031676,2]
[311617111,1705265494232,-15579.32167354,0.00031718,3]
[311617112,1705265494241,-500.0,0.0003173,2]
[311617113,1705265494251,-166.36,0.00031749,2]
[311617114,1705265494260,-1993.60653099,0.00031777,2]
[311617115,1705265494270,-500.0,0.0003178,2]
[311617116,1705265494278,-500.0,0.0003178,2]
[311617117,1705265494288,-500.0,0.0003178,2]
[311617118,1705265494297,-500.0,0.0003178,2]
[311617119,1705265494306,-500.0,0.0003178,2]
[311617120,1705265494316,-279.89231061,0.0003178,2]
[311617121,1705265494326,-500.0,0.0003178,2]
[311617122,1705265494335,-500.0,0.0003178,2]
[311617123,1705265494344,-500.0,0.0003178,2]
[311617124,1705265494353,-500.0,0.0003178,2]
[311617125,1705265494363,-240.71276017,0.0003178,2]
[311617126,1705265494372,-500.0,0.0003178,2]
[311617127,1705265494381,-500.0,0.0003178,2]
[311617128,1705265494391,-500.0,0.0003178,2]
[311617129,1705265494401,-500.0,0.0003178,2]
[311617130,1705265494410,-500.0,0.0003178,2]
[311617131,1705265494418,-500.0,0.0003178,2]
[311617132,1705265494428,-500.0,0.0003178,2]
[311617133,1705265494437,-500.0,0.0003178,2]
[311617134,1705265494446,-500.0,0.0003178,2]
[311617135,1705265494455,-500.0,0.0003178,2]
[311617136,1705265494465,-528.74,0.0003178,2]
[311617137,1705265494475,-500.0,0.0003178,2]
[311617138,1705265494484,-502.48,0.0003178,2]
[311617139,1705265494494,-500.0,0.0003178,2]
[311617140,1705265494504,-527.79613613,0.0003178,2]
[311617141,1705265494514,-500.0,0.0003178,2]
[311617142,1705265494523,-500.0,0.0003178,2]
[311617143,1705265494533,-500.0,0.0003178,2]
[311617144,1705265494542,-500.0,0.0003178,2]
[311617145,1705265494551,-500.0,0.0003178,2]
[311617146,1705265494561,-770.53,0.0003178,2]
[311617147,1705265494571,-500.0,0.0003178,2]
[311617148,1705265494580,-536.98,0.0003178,2]
[311617149,1705265494590,-926.02,0.0003178,2]
[311617150,1705265494599,-500.0,0.0003178,2]
[311617151,1705265494608,-500.0,0.0003178,2]
[311617152,1705265494618,-1147.85,0.0003178,2]
[311617153,1705265494628,-500.0,0.0003178,2]
[311617154,1705265494637,-500.0,0.0003178,2]
[311617155,1705265494647,-500.0,0.0003178,2]
[311617156,1705265494656,-500.0,0.0003178,2]
[311617157,1705265494666,-541.41,0.0003178,2]
[311617158,1705265494675,-500.0,0.0003178,2]
[311617159,1705265494684,-384.43454786,0.0003178,2]
[311617160,1705265494694,-500.0,0.0003178,2]
[311617161,1705265494703,-500.0,0.0003178,2]
[311617162,1705265494713,-500.0,0.0003178,2]
[311617163,1705265494722,-500.0,0.0003178,2]
[311617164,1705265494734,-709.9,0.0003178,2]
[311617165,1705265494748,-500.0,0.0003178,2]
[311617166,1705265494758,-500.0,0.0003178,2]
[311617167,1705265494768,-656.39,0.0003178,2]
[311617168,1705265494777,-500.0,0.0003178,2]
[311617169,1705265494786,-500.0,0.0003178,2]
[311617170,1705265494796,-500.0,0.0003178,2]
[311617171,1705265494806,-500.0,0.0003178,2]
[311617172,1705265494816,-196.029725,0.0003178,7]
[311617173,1705265494825,-500.0,0.0003178,2]
[311617174,1705265494834,-605.62263867,0.0003178,2]
[311617175,1705265494844,-585.77,0.0003178,2]
[311617176,1705265494853,-500.0,0.0003178,2]
[311617177,1705265494862,-646.67,0.0003178,2]
[311617178,1705265494872,-500.0,0.0003178,2]
[311617179,1705265494887,-500.0,0.0003178,2]
[311617180,1705265494898,-500.0,0.0003178,2]
[311617181,1705265494908,-500.0,0.0003178,2]
[311617182,1705265494917,-518.76,0.0003178,2]
[311617183,1705265494926,-500.0,0.0003178,2]
[311617184,1705265494935,-500.0,0.0003178,2]
[311617185,1705265494945,-500.0,0.0003178,2]
[311617186,1705265494954,-500.0,0.0003178,2]
[311617187,1705265494964,-500.0,0.0003178,2]
[311617188,1705265494974,-500.0,0.0003178,2]
[311617189,1705265494983,-500.0,0.0003178,2]
[311617190,1705265494993,-500.0,0.0003178,2]
[311617191,1705265495001,-673.27,0.0003178,2]
[311617192,1705265495011,-640.51,0.0003178,2]
[311617193,1705265495020,-653.68,0.0003178,2]
[311617194,1705265495030,-636.5701965,0.0003178,2]
[311617195,1705265495040,-595.86,0.0003178,2]
[311617196,1705265495049,-580.82618165,0.0003178,2]
[311617197,1705265495059,-500.0,0.0003178,2]
[311617198,1705265495069,-565.95,0.0003178,2]
[311617199,1705265495079,-500.0,0.0003178,2]
[311617200,1705265495089,-645.55,0.0003178,2]
[311617201,1705265495098,-588.78,0.0003178,2]
[311617202,1705265495108,-683.34,0.0003178,2]
[311617203,1705265495117,-551.22,0.0003178,2]
[311617204,1705265495129,-500.0,0.0003178,2]
[311617205,1705265495139,-500.0,0.0003178,2]
[311617206,1705265495149,-594.67,0.0003178,2]
[311617207,1705265495159,-963.4,0.0003178,2]
[311617208,1705265495169,-601.15,0.0003178,2]
[311617209,1705265495178,-665.95,0.0003178,2]
[311617210,1705265495188,-500.0,0.0003178,2]
[311617211,1705265495198,-500.0,0.0003178,2]
[311617212,1705265495208,-500.0,0.0003178,2]
[311617213,1705265495217,-500.0,0.0003178,2]
[311617214,1705265495227,-626.87,0.0003178,2]
[311617215,1705265495237,-500.0,0.0003178,2]
[311617216,1705265495247,-562.08,0.0003178,2]
[311617217,1705265495258,-500.0,0.0003178,2]
[311617218,1705265495268,-500.0,0.0003178,2]
[311617219,1705265495277,-500.0,0.0003178,2]
[311617220,1705265495287,-727.57,0.0003178,2]
[311617221,1705265495296,-560.21,0.0003178,2]
[311617222,1705265495306,-500.0,0.0003178,2]
[311617223,1705265495316,-500.0,0.0003178,2]
[311617224,1705265495326,-500.0,0.0003178,2]
[311617225,1705265495335,-500.0,0.0003178,2]
[311617226,1705265495345,-500.0,0.0003178,2]
[311617227,1705265495355,-500.0,0.0003178,2]
[311617228,1705265495365,-500.0,0.0003178,2]
[311617229,1705265495376,-500.0,0.0003178,2]
[311617230,1705265495386,-500.0,0.0003178,2]
[311617231,1705265495396,-500.0,0.0003178,2]
[311617232,1705265495405,-607.16,0.0003178,2]
[311617233,1705265495415,-982.04,0.0003178,2]
[311617234,1705265495425,-500.0,0.0003178,2]
[311617235,1705265495434,-600.07,0.0003178,2]
[311617236,1705265495444,-500.0,0.0003178,2]
[311617237,1705265495454,-1048.4,0.0003178,2]
[311617238,1705265495464,-500.0,0.0003178,2]
[311617239,1705265495474,-500.0,0.0003178,2]
[311617240,1705265495484,-950.82,0.0003178,2]
[311617241,1705265495494,-500.0,0.0003178,2]
[311617242,1705265495503,-775.5,0.0003178,2]
[311617243,1705265495513,-500.0,0.0003178,2]
[311617244,1705265495523,-806.58,0.0003178,2]
[311617245,1705265495532,-748.97,0.0003178,2]
[311617246,1705265495542,-500.0,0.0003178,2]
[311617247,1705265495551,-500.0,0.0003178,2]
[311617248,1705265495561,-500.0,0.0003178,2]
[311617249,1705265495571,-544.49,0.0003178,2]
[311617250,1705265495581,-500.0,0.0003178,2]
[311617251,1705265495591,-500.0,0.0003178,2]
[311617252,1705265495601,-500.0,0.0003178,2]
[311617253,1705265495611,-500.0,0.0003178,2]
[311617254,1705265495621,-500.0,0.0003178,2]
[311617255,1705265495632,-671.61,0.0003178,2]
[311617256,1705265495642,-500.0,0.0003178,2]
[311617257,1705265495651,-500.0,0.0003178,2]
[311617258,1705265495661,-500.0,0.0003178,2]
[311617259,1705265495671,-500.0,0.0003178,2]
[311617260,1705265495680,-500.0,0.0003178,2]
[311617261,1705265495689,-602.2,0.0003178,2]
[311617262,1705265495698,-769.86,0.0003178,2]
[311617263,1705265495708,-500.0,0.0003178,2]
[311617264,1705265495717,-500.0,0.0003178,2]
[311617265,1705265495727,-500.0,0.0003178,2]
[311617266,1705265495739,-500.0,0.0003178,2]
[311617267,1705265495749,-500.0,0.0003178,2]
[311617268,1705265495758,-500.0,0.0003178,2]
[311617269,1705265495767,-500.0,0.0003178,2]
[311617270,1705265495777,-222.62767222,0.0003178,2]
[311617271,1705265495786,-500.0,0.0003178,2]
[311617272,1705265495796,-500.0,0.0003178,2]
[311617273,1705265495805,-692.82,0.0003178,2]
[311617274,1705265495814,-507.31,0.0003178,2]
[311617275,1705265495823,-500.0,0.0003178,2]
[311617276,1705265495833,-500.0,0.0003178,2]
[311617277,1705265495842,-500.0,0.0003178,2]
[311617278,1705265495851,-729.84,0.0003178,2]
[311617279,1705265495860,-536.68,0.0003178,2]
[311617280,1705265495870,-583.46,0.0003178,2]
[311617281,1705265495886,-500.0,0.0003178,2]
[311617282,1705265495896,-500.0,0.0003178,2]
[311617283,1705265495906,-500.0,0.0003178,2]
[311617284,1705265495915,-500.0,0.0003178,2]
[311617285,1705265495924,-500.0,0.0003178,2]
[311617286,1705265495934,-500.0,0.0003178,2]
[311617287,1705265495943,-1000.1,0.0003178,2]
[311617288,1705265495952,-500.0,0.0003178,2]
[311617289,1705265495961,-500.0,0.0003178,2]
[311617290,1705265495971,-500.0,0.0003178,2]
[311617291,1705265495980,-793.74,0.0003178,2]
[311617292,1705265495990,-702.71,0.0003178,2]
[311617293,1705265496001,-500.0,0.0003178,2]
[311617294,1705265496011,-500.0,0.0003178,2]
[311617295,1705265496020,-500.0,0.0003178,2]
[311617296,1705265496029,-923.77,0.0003178,2]
[311617297,1705265496039,-500.0,0.0003178,2]
[311617298,1705265496049,-500.0,0.0003178,2]
[311617299,1705265496059,-629.36,0.0003178,2]
[311617300,1705265496068,-500.0,0.0003178,2]
[311617301,1705265496078,-500.0,0.0003178,2]
[311617302,1705265496087,-867.3,0.0003178,2]
[311617303,1705265496096,-500.0,0.0003178,2]
[311617304,1705265496105,-500.0,0.0003178,2]
[311617305,1705265496115,-500.0,0.0003178,2]
[311617306,1705265496124,-581.81,0.0003178,2]
[311617307,1705265496134,-624.05,0.0003178,2]
[311617308,1705265496143,-830.39,0.0003178,2]
[311617309,1705265496152,-500.0,0.0003178,2]
[311617310,1705265496162,-500.0,0.0003178,2]
[311617311,1705265496172,-677.4,0.0003178,2]
[311617312,1705265496182,-1100.99,0.0003178,2]
[311617313,1705265496192,-525.17,0.0003178,2]
[311617314,1705265496201,-500.0,0.0003178,2]
[311617315,1705265496210,-500.0,0.0003178,2]
[311617316,1705265496219,-586.11,0.0003178,2]
[311617317,1705265496229,-500.0,0.0003178,2]
[311617318,1705265496238,-500.0,0.0003178,2]
[311617319,1705265496248,-500.0,0.0003178,2]
[311617320,1705265496257,-1229.11,0.0003178,2]
[311617321,1705265496267,-1106.76,0.0003178,2]
[311617322,1705265496276,-500.0,0.0003178,2]
[311617323,1705265496285,-500.0,0.0003178,2]
[311617324,1705265496296,-500.0,0.0003178,2]
[311617325,1705265496305,-894.93,0.0003178,2]
[311617326,1705265496315,-608.9,0.0003178,2]
[311617327,1705265496325,-500.0,0.0003178,2]
[311617328,1705265496335,-946.64,0.0003178,2]
[311617329,1705265496345,-619.49,0.0003178,2]
[311617330,1705265496356,-500.0,0.0003178,2]
[311617331,1705265496367,-500.0,0.0003178,2]
[311617332,1705265496378,-868.77,0.0003178,2]
[311617333,1705265496388,-500.0,0.0003178,2]
[311617334,1705265496399,-500.0,0.0003178,2]
[311617335,1705265496409,-609.22336306,0.0003178,2]
[311617336,1705265496419,-500.0,0.0003178,2]